Workbook

Sheet Introduction
D7: To obtain an optimal use of this document, it is recomended to download it before use.
D9: With this simulator, Elia is aiming at giving more information to all market players, on the tariff conditions for
D10: access to the grid (*), for public service obligations & for taxes and levies.
D11: Connection tariffs and tariffs for imbalance are not handled here.
D13: This simulation shows how the amounts related to the access to the Elia-grid by grid users are computed.
D14: The region in which the access point is located, the infrastructure level and the type of access point is also
D15: taken into account.
D17: Tariffs are applicable from the 1st of January 2027 to the 31st of December 2027.
D18: Tariffs for Public Service Obligations and levies are validated for 2024 and will still be adapted for 2027.
D19: The simulation can be used by customers directly connected to the Elia grid, with or without local
D20: production in the same access point. The simulation is not intended for distribution grid operators.
D22: To use the file, fill-in the description of the access profile, on the sheet "Data". Results are shown on the
D23: sheets "Results I" (tariffs applicable in the given access point) and "Results II" (amounts linked to the terms
D24: for access to the grid, for public service obligations & for taxes and levies in the given access point).
D27: (*) Except of the tariff for supplementary deliveries of reactive energy and the tariff for any exceeding
D28: of the power put at disposal.
D31: Disclaimer :
D33: This file and the information included herein (including tariffs) are given for information purposes only.
D34: These elements are aiming at facilitating the computation of the use of system charges, for one given grid
D35: user connected to one given point. The given information and tariffs, as well as the results of the
D36: simulation, are not of contractual nature. They do not constitute an offer for the conclusion of any contract,
D37: and do not engage Elia in any way.
D39: Elia does not guarantee the adequacy, accurracy or completeness of the given information and/or
D40: computed results, nor the period in wich the mentioned charges will be valid. Elia cannot be held
D41: responsible for the consequences arising from the possible uncompleteness or inaccuracy of the given
D42: information and tariffs, as well as in case these information and tariffs are not up to date.

Sheet Data
C3: Data to be provided by the user
D5: 1. Description of the access point
E7: Please, fill in infrastructure level, region and type of access point.
E10: Infrastructure level: | F10: On the 70/36/30 kV network
E12: Region: | F12: Brussels
E14: Type of access point: | F14: Principal
D16: 2. Net offtake peak (in MW)
E18: Please, fill in the net offtake peak for each month (column A).
E19: Please, fill also in the net offtake peak realised during the hours 17-20, weekend and holidays
E20: excluded, only during the months of January to March and November to December (column B)
E22: P.S. : For each month, the value in column B is always smaller or equal to the value in column A for the year 2023.
F24: A (year 2023) | G24: B (year 2022) | H24: B (year 2023) | I24: Yearly peak
E25: January | I25: =MAX($G$26:$G$36,H25) -> 0 | J25: =IF(H25>F25,"Peaks A and B incompatible","") -> 
E26: February | I26: =MAX($G27:$G$36,H$25:H26) -> 0 | J26: =IF(H26>F26,"Peaks A and B incompatible","") -> 
E27: March | I27: =MAX($G28:$G$36,H$25:H27) -> 0 | J27: =IF(H27>F27,"Peaks A and B incompatible","") -> 
E28: April | I28: =MAX($G29:$G$36,H$25:H28) -> 0
E29: May | I29: =MAX($G30:$G$36,H$25:H29) -> 0
E30: Jun | I30: =MAX($G31:$G$36,H$25:H30) -> 0
E31: July | I31: =MAX($G32:$G$36,H$25:H31) -> 0
E32: August | I32: =MAX($G33:$G$36,H$25:H32) -> 0
E33: September | I33: =MAX($G34:$G$36,H$25:H33) -> 0
E34: October | I34: =MAX($G35:$G$36,H$25:H34) -> 0
E35: November | I35: =MAX($G36:$G$36,H$25:H35) -> 0 | J35: =IF(H35>F35,"Peaks A and B incompatible","") -> 
E36: December | I36: =MAX(H$25:H36) -> 0 | J36: =IF(H36>F36,"Peaks A and B incompatible","") -> 
D39: 3. Power put at disposal (in MVA)
E41: Please fill in, the power put at disposal of the offtake point.
E43: P.S. : The power put at disposal must be at least equal to the maximum offtake peak of the year.
E44: The power at disposal needs to take into account the power of the installations
E45: situated behind the access point.
G47: =IF(F47<MAX(F25:F36)," Error: lower than the maximum peak of 2019","") -> 
D50: 4. Net offtaken energy (in MWh)
E52: Please, fill in the net offtaken energy for each month.
E54: If you wish so, you can introduce an utilisation % for automatic calculation of the monthly energies based on the net offtake
E55: peaks filled in above and thereupon push on the button.
F57: 1
F60: Number of monthly hours | G60: Maximum monthly energy | H60: Monthly energy
E61: January | F61: 744 | G61: =F25*F61 -> 0 | I61: =IF(H61>G61,"Energy and peak not compatible","") -> 
E62: February | F62: 696 | G62: 0 | I62: =IF(H62>G62,"Energy and peak not compatible","") -> 
E63: March | F63: 743 | G63: 0
E64: April | F64: 720 | G64: 0
E65: May | F65: 744 | G65: 0
E66: Jun | F66: 720 | G66: 0
E67: July | F67: 744 | G67: 0
E68: August | F68: 744 | G68: 0
E69: September | F69: 720 | G69: 0
E70: October | F70: 745 | G70: 0
E71: November | F71: 720 | G71: 0
E72: December | F72: 744 | G72: 0
H73: =SUM(H61:H72) -> 0
D76: 5. Net injected energy (in MWh)
E78: Please, fill in the net injected energy for the year, if applicable.
D83: 6. Data concerning the public service obligations and surcharges
E85: Are you Access Holder ? | F85: No
E87: Do you have a sector agreement ? | F87: No | H87: Taken into account in the calculation if access holder
E89: What is the type of your activity? | F89: Other
H90: Taken into account in the calculation if access holder in Wallonia
H91: and sector agreement and/or convenant
E93: Thanks !
E94: The results can be consulted on the sheets "Results I" et "Results II".

Sheet Results I
B3: Tariffs for:
B4: Type of customer: | C4: Customer directly connected to the Elia grid
B5: Infrastructure level: | C5: =D_Tension -> On the 70/36/30 kV network
B6: Region: | C6: =D_Region -> Brussels
B7: Type of access point: | C7: =D_Type -> Principal
B11: A. Tariffs for the management and the development of the grid infrastructure
D13: €/kW net offtaken by month
C14: 1. Tariffs for the monthly peak | D14: =VLOOKUP($C$5,Tariffs!D9:F11,3,FALSE) -> 0.773
D16: €/kW net offtaken by year
C17: 2. Tariffs for the yearly peak | D17: =VLOOKUP($C$5,Tariffs!D16:F18,3,FALSE) -> 18.7555
D19: €/kVA at offtake by year
C20: 3. Tariffs for the power put at disposal | D20: =IF($C$7="Principal",VLOOKUP($C$5,Tariffs!D24:G26,3,FALSE),VLOOKUP($C$5,Tariffs!D24:H26,4,FALSE)) -> 17.3818
B22: B. Tariffs for the management fo the electric system
D23: €/MWh net offtaken
D24: =VLOOKUP($C$5,Tariffs!D32:F34,3,FALSE) -> 4.1341
B26: C. Tariffs for the power reserves and black-start
D27: €/MWh net offtaken
C28: 1. based on offtake | D28: =VLOOKUP($C$5,Tariffs!D41:F43,3,FALSE) -> 1.6203
D30: €/MWh net injected
C31: 2. based on injection | D31: =VLOOKUP($C$5,Tariffs!D47:F49,3,FALSE) -> 1.05
B33: D. Tariffs for market integration
D34: €/MWh net offtaken
D35: =VLOOKUP($C$5,Tariffs!D54:F56,3,FALSE) -> 0.6682
B37: E. Tariffs for public service obligations
D38: €/MWh net offtaken
C39: 1. Tariffs for financing the support measures for renewable energy in Flemish Region | D39: =IF($C$6="Flanders",VLOOKUP($C$5,Tariffs!D63:F65,3,FALSE),0) -> 0
D41: €/MWh net offtaken
C42: 2. Tariffs for Financing measures for promotion of rational use of energy in Flemish Region | D42: =IF($C$6="Flanders",VLOOKUP($C$5,Tariffs!D70:F72,3,FALSE),0) -> 0
D44: First term | E44: Second term
D45: €/MWh net offtaken | E45: €/MWh exempted
C46: 3. Tariffs for financing the support measures for renewable energy in Walloon Region | D46: =IF($C$6="Wallonia",VLOOKUP($C$5,Tariffs!D78:F80,3,FALSE),0) -> 0 | E46: =IF($C$6="Wallonia",VLOOKUP($C$5,Tariffs!D78:G80,4,FALSE),0) -> 0
D48: €/MWh net offtaken
C49: 4. Tariffs for financing the support measures for renewable energy in Brussels | D49: =IF($C$6="Brussels",VLOOKUP($C$5,Tariffs!D84:F86,3,FALSE),0) -> 0.5949
B51: F. Taxes and levies
D52: €/MWh net offtaken
C53: 1. Occupying public domain in Walloon Region | D53: =IF($C$6="Wallonia",VLOOKUP($C$5,Tariffs!D92:F94,3,FALSE),0) -> 0
D55: €/MWh net offtaken
C56: 2. Occupying road network in Brussels Region | D56: =IF($C$6="Brussels",VLOOKUP($C$5,Tariffs!D99:F101,3,FALSE),0) -> 4.1778
D58: €/MWh net offtaken
C59: 3. Levie for the taxes "pylons" et "trenches" in Flemish region | D59: =IF($C$6="Flanders",VLOOKUP($C$5,Tariffs!D106:F108,3,FALSE),0) -> 0

Sheet Results II
B2: Results
E4: Type of customer: | F4: Customer directly connected to the Elia grid
E5: Infrastructure level: | F5: =D_Tension -> On the 70/36/30 kV network
E6: Region: | F6: =D_Region -> Brussels
E7: Type of access point: | F7: =D_Type -> Principal
E8: Access Holder: | F8: =D_DA -> No
E9: Sector agreement: | F9: =D_DB -> No
E10: Type of activity: | F10: =D_TA -> Other
B14: a. Terms for the management and the development of the grid infrastructure
C16: a.1) Terms for the monthly peak :
F18: Monthly peak | H18: Tariff | J18: Amount
E19: January | F19: =Data!F25 -> 0 | G19: MW * | H19: ='Results I'!$D$14 -> 0.773 | I19: €/kW = | J19: =F19*H19*1000 -> 0 | K19: €
E20: February | F20: =Data!F26 -> 0 | G20: MW * | H20: =H19 -> 0.773 | I20: €/kW = | J20: =F20*H20*1000 -> 0 | K20: €
E21: March | F21: =Data!F27 -> 0 | G21: MW * | H21: =H20 -> 0.773 | I21: €/kW = | J21: 0 | K21: €
E22: April | F22: =Data!F28 -> 0 | G22: MW * | H22: 0.773 | I22: €/kW = | J22: 0 | K22: €
E23: May | F23: =Data!F29 -> 0 | G23: MW * | H23: 0.773 | I23: €/kW = | J23: 0 | K23: €
E24: Jun | F24: =Data!F30 -> 0 | G24: MW * | H24: 0.773 | I24: €/kW = | J24: 0 | K24: €
E25: July | F25: =Data!F31 -> 0 | G25: MW * | H25: 0.773 | I25: €/kW = | J25: 0 | K25: €
E26: August | F26: =Data!F32 -> 0 | G26: MW * | H26: 0.773 | I26: €/kW = | J26: 0 | K26: €
E27: September | F27: =Data!F33 -> 0 | G27: MW * | H27: 0.773 | I27: €/kW = | J27: 0 | K27: €
E28: October | F28: =Data!F34 -> 0 | G28: MW * | H28: 0.773 | I28: €/kW = | J28: 0 | K28: €
E29: November | F29: =Data!F35 -> 0 | G29: MW * | H29: 0.773 | I29: €/kW = | J29: 0 | K29: €
E30: December | F30: =Data!F36 -> 0 | G30: MW * | H30: 0.773 | I30: €/kW = | J30: 0 | K30: €
I32: Total term for the monthly peak : | J32: =SUM(J19:J30) -> 0 | K32: €
C35: a.2) Terms for the yearly peak :
F37: Yearly peak | H37: Tariff | J37: Amount
E38: January | F38: =Data!I25 -> 0 | G38: MW * | H38: ='Results I'!$D$17/12 -> 1.562958333 | I38: €/kW = | J38: =F38*H38*1000 -> 0 | K38: €
E39: February | F39: =Data!I26 -> 0 | G39: MW * | H39: =H38 -> 1.562958333 | I39: €/kW = | J39: 0 | K39: €
E40: March | F40: =Data!I27 -> 0 | G40: MW * | H40: =H39 -> 1.562958333 | I40: €/kW = | J40: 0 | K40: €
E41: April | F41: =Data!I28 -> 0 | G41: MW * | H41: 1.562958333 | I41: €/kW = | J41: 0 | K41: €
E42: May | F42: =Data!I29 -> 0 | G42: MW * | H42: 1.562958333 | I42: €/kW = | J42: 0 | K42: €
E43: Jun | F43: =Data!I30 -> 0 | G43: MW * | H43: 1.562958333 | I43: €/kW = | J43: 0 | K43: €
E44: July | F44: =Data!I31 -> 0 | G44: MW * | H44: 1.562958333 | I44: €/kW = | J44: 0 | K44: €
E45: August | F45: =Data!I32 -> 0 | G45: MW * | H45: 1.562958333 | I45: €/kW = | J45: 0 | K45: €
E46: September | F46: =Data!I33 -> 0 | G46: MW * | H46: 1.562958333 | I46: €/kW = | J46: 0 | K46: €
E47: October | F47: =Data!I34 -> 0 | G47: MW * | H47: 1.562958333 | I47: €/kW = | J47: 0 | K47: €
E48: November | F48: =Data!I35 -> 0 | G48: MW * | H48: 1.562958333 | I48: €/kW = | J48: 0 | K48: €
E49: December | F49: =Data!I36 -> 0 | G49: MW * | H49: 1.562958333 | I49: €/kW = | J49: 0 | K49: €
I51: Total term for the yearly peak : | J51: =SUM(J38:J49) -> 0 | K51: €
C54: a.3) Terms for the power put at disposal :
F56: Power | H56: Tariff | J56: Amount
F57: =Data!$F$47 -> 0 | G57: MVA * | H57: ='Results I'!$D$20 -> 17.3818 | I57: €/kVA | J57: =F57*H57*1000 -> 0 | K57: €
I59: Total term for the management and the development of the grid infrastructure : | J59: =J32+J51+J57 -> 0 | K59: €
B62: b) Terms for the management fo the electric system :
F64: Net offtaken energy | H64: Tariff | J64: Amount
E65: January | F65: =Data!H61 -> 0 | G65: MWh * | H65: ='Results I'!D24 -> 4.1341 | I65: €/MWh = | J65: =F65*H65 -> 0 | K65: €
E66: February | F66: =Data!H62 -> 0 | G66: MWh * | H66: =H65 -> 4.1341 | I66: €/MWh = | J66: =F66*H66 -> 0 | K66: €
E67: March | F67: =Data!H63 -> 0 | G67: MWh * | H67: =H66 -> 4.1341 | I67: €/MWh = | J67: 0 | K67: €
E68: April | F68: =Data!H64 -> 0 | G68: MWh * | H68: 4.1341 | I68: €/MWh = | J68: 0 | K68: €
E69: May | F69: =Data!H65 -> 0 | G69: MWh * | H69: 4.1341 | I69: €/MWh = | J69: 0 | K69: €
E70: Jun | F70: =Data!H66 -> 0 | G70: MWh * | H70: 4.1341 | I70: €/MWh = | J70: 0 | K70: €
E71: July | F71: =Data!H67 -> 0 | G71: MWh * | H71: 4.1341 | I71: €/MWh = | J71: 0 | K71: €
E72: August | F72: =Data!H68 -> 0 | G72: MWh * | H72: 4.1341 | I72: €/MWh = | J72: 0 | K72: €
E73: September | F73: =Data!H69 -> 0 | G73: MWh * | H73: 4.1341 | I73: €/MWh = | J73: 0 | K73: €
E74: October | F74: =Data!H70 -> 0 | G74: MWh * | H74: 4.1341 | I74: €/MWh = | J74: 0 | K74: €
E75: November | F75: =Data!H71 -> 0 | G75: MWh * | H75: 4.1341 | I75: €/MWh = | J75: 0 | K75: €
E76: December | F76: =Data!H72 -> 0 | G76: MWh * | H76: 4.1341 | I76: €/MWh = | J76: 0 | K76: €
I78: Total term for the management fo the electric system : | J78: =SUM(J65:J76) -> 0 | K78: €
B81: c) Terms for the power reserves and black-start :
D83: c.1. based on offtake :
F84: Net offtaken energy | H84: Tariff | J84: Amount
E85: January | F85: =Data!H61 -> 0 | G85: MWh * | H85: ='Results I'!D28 -> 1.6203 | I85: €/MWh = | J85: =F85*H85 -> 0 | K85: €
E86: February | F86: =Data!H62 -> 0 | G86: MWh * | H86: =H85 -> 1.6203 | I86: €/MWh = | J86: =F86*H86 -> 0 | K86: €
E87: March | F87: =Data!H63 -> 0 | G87: MWh * | H87: =H86 -> 1.6203 | I87: €/MWh = | J87: 0 | K87: €
E88: April | F88: =Data!H64 -> 0 | G88: MWh * | H88: 1.6203 | I88: €/MWh = | J88: 0 | K88: €
E89: May | F89: =Data!H65 -> 0 | G89: MWh * | H89: 1.6203 | I89: €/MWh = | J89: 0 | K89: €
E90: Jun | F90: =Data!H66 -> 0 | G90: MWh * | H90: 1.6203 | I90: €/MWh = | J90: 0 | K90: €
E91: July | F91: =Data!H67 -> 0 | G91: MWh * | H91: 1.6203 | I91: €/MWh = | J91: 0 | K91: €
E92: August | F92: =Data!H68 -> 0 | G92: MWh * | H92: 1.6203 | I92: €/MWh = | J92: 0 | K92: €
E93: September | F93: =Data!H69 -> 0 | G93: MWh * | H93: 1.6203 | I93: €/MWh = | J93: 0 | K93: €
E94: October | F94: =Data!H70 -> 0 | G94: MWh * | H94: 1.6203 | I94: €/MWh = | J94: 0 | K94: €
E95: November | F95: =Data!H71 -> 0 | G95: MWh * | H95: 1.6203 | I95: €/MWh = | J95: 0 | K95: €
E96: December | F96: =Data!H72 -> 0 | G96: MWh * | H96: 1.6203 | I96: €/MWh = | J96: 0 | K96: €
D98: Total term for the power reserves and black-start based on offtake : | J98: =SUM(J85:J96) -> 0 | K98: €
D100: c.2. based on injection :
F101: Net injected energy | H101: Tariff | J101: Amount
F102: =Data!F80 -> 0 | G102: MWh * | H102: ='Results I'!D31 -> 1.05 | I102: €/MWh = | J102: =F102*H102 -> 0 | K102: €
D104: Total term for the power reserves and black-start : | J104: =J98+J102 -> 0 | K104: €
B107: d) Terms for market integration :
F109: Net offtaken energy | H109: Tariff | J109: Amount
E110: January | F110: =Data!H61 -> 0 | G110: MWh * | H110: ='Results I'!D35 -> 0.6682 | I110: €/MWh = | J110: =F110*H110 -> 0 | K110: €
E111: February | F111: =Data!H62 -> 0 | G111: MWh * | H111: =H110 -> 0.6682 | I111: €/MWh = | J111: =F111*H111 -> 0 | K111: €
E112: March | F112: =Data!H63 -> 0 | G112: MWh * | H112: =H111 -> 0.6682 | I112: €/MWh = | J112: 0 | K112: €
E113: April | F113: =Data!H64 -> 0 | G113: MWh * | H113: 0.6682 | I113: €/MWh = | J113: 0 | K113: €
E114: May | F114: =Data!H65 -> 0 | G114: MWh * | H114: 0.6682 | I114: €/MWh = | J114: 0 | K114: €
E115: Jun | F115: =Data!H66 -> 0 | G115: MWh * | H115: 0.6682 | I115: €/MWh = | J115: 0 | K115: €
E116: July | F116: =Data!H67 -> 0 | G116: MWh * | H116: 0.6682 | I116: €/MWh = | J116: 0 | K116: €
E117: August | F117: =Data!H68 -> 0 | G117: MWh * | H117: 0.6682 | I117: €/MWh = | J117: 0 | K117: €
E118: September | F118: =Data!H69 -> 0 | G118: MWh * | H118: 0.6682 | I118: €/MWh = | J118: 0 | K118: €
E119: October | F119: =Data!H70 -> 0 | G119: MWh * | H119: 0.6682 | I119: €/MWh = | J119: 0 | K119: €
E120: November | F120: =Data!H71 -> 0 | G120: MWh * | H120: 0.6682 | I120: €/MWh = | J120: 0 | K120: €
E121: December | F121: =Data!H72 -> 0 | G121: MWh * | H121: 0.6682 | I121: €/MWh = | J121: 0 | K121: €
I123: Total term for market integration : | J123: =SUM(J110:J121) -> 0 | K123: €
B126: e) Terms for public service obligations :
C128: e.1.) Financing the support measures for renewable energy in Flemish Region
D129: The determination of the tariff does not depend on the previous year but on the year selected by reference contrary to what is provided for in the tariffs.
D130: =IF($F$6="Flanders","","Not applicable in this region") -> Not applicable in this region
E131: Range | F131: Net offtaken energy by range | H131: Tariff | J131: Amount | M131: Degressivity
E132: 0-1000 | F132: =IF($F$6<>"Flanders","",IF(Data!H73<1000,Data!H73,0)) ->  | G132: =IF($F$6<>"Flanders","","MWh *") ->  | H132: =IF($F$6<>"Flanders","",'Results I'!$D$39) ->  | I132: =IF($F$6<>"Flanders","","€/MWh =") ->  | J132: =IF($F$6<>"Flanders","",F132*H132*M132) ->  | K132: =IF($F$6<>"Flanders","","€") ->  | M132: =IF($F$6<>"Flanders","",1) -> 
E133: 1000-20000 | F133: =IF($F$6<>"Flanders","",IF(AND(1000<=Data!H73,Data!H73<20000),Data!H73,0)) ->  | G133: =IF($F$6<>"Flanders","","MWh *") ->  | H133: =IF($F$6<>"Flanders","",'Results I'!$D$39) ->  | I133: =IF($F$6<>"Flanders","","€/MWh =") ->  | J133: =IF($F$6<>"Flanders","",F133*H133*M133) ->  | K133: =IF($F$6<>"Flanders","","€") ->  | M133: =IF($F$6<>"Flanders","",0.53) -> 
E134: 20000-100000 | F134: =IF($F$6<>"Flanders","",IF(AND(20000<=Data!H73,Data!H73<100000),Data!H73,0)) ->  | G134: =IF($F$6<>"Flanders","","MWh *") ->  | H134: =IF($F$6<>"Flanders","",'Results I'!$D$39) ->  | I134: =IF($F$6<>"Flanders","","€/MWh =") ->  | J134: =IF($F$6<>"Flanders","",F134*H134*M134) ->  | K134: =IF($F$6<>"Flanders","","€") ->  | M134: =IF($F$6<>"Flanders","",0.2) -> 
E135: 100000-250000 | F135: =IF($F$6<>"Flanders","",IF(AND(100000<=Data!H73,Data!H73<250000),Data!H73,0)) ->  | G135: =IF($F$6<>"Flanders","","MWh *") ->  | H135: =IF($F$6<>"Flanders","",'Results I'!$D$39) ->  | I135: =IF($F$6<>"Flanders","","€/MWh =") ->  | J135: =IF($F$6<>"Flanders","",F135*H135*M135) ->  | K135: =IF($F$6<>"Flanders","","€") ->  | M135: =IF($F$6<>"Flanders","",0.2) -> 
E136: >250000 | F136: =IF($F$6<>"Flanders","",IF(250000<=Data!H73,Data!H73,0)) ->  | G136: =IF($F$6<>"Flanders","","MWh *") ->  | H136: =IF($F$6<>"Flanders","",'Results I'!$D$39) ->  | I136: =IF($F$6<>"Flanders","","€/MWh =") ->  | J136: =IF($F$6<>"Flanders","",F136*H136*M136) ->  | K136: =IF($F$6<>"Flanders","","€") ->  | M136: =IF($F$6<>"Flanders","",0.02) -> 
E138: Total term for financing the support measures for renewable energy : | J138: =SUM(J132:J136) -> 0 | K138: €
C140: e.2.) Financing measures for promotion of rational use of energy in Flemish Region
D141: =IF($F$6="Flanders","","Not applicable in this region") -> Not applicable in this region
F142: Net offtaken energy | H142: Tariff | J142: Amount
E143: January | F143: =IF($F$6<>"Flanders","",Data!H61) ->  | G143: =IF($F$6<>"Flanders","","MWh *") ->  | H143: =IF($F$6<>"Flanders","",'Results I'!$D$42) ->  | I143: =IF($F$6<>"Flanders","","€/MWh =") ->  | J143: =IF($F$6<>"Flanders","",F143*H143) ->  | K143: =IF($F$6<>"Flanders","","€") -> 
E144: February | F144: =IF($F$6<>"Flanders","",Data!H62) ->  | H144: =IF($F$6<>"Flanders","",'Results I'!$D$42) -> 
E145: March | F145: =IF($F$6<>"Flanders","",Data!H63) ->  | H145: =IF($F$6<>"Flanders","",'Results I'!$D$42) -> 
E146: April | F146: =IF($F$6<>"Flanders","",Data!H64) ->  | H146: =IF($F$6<>"Flanders","",'Results I'!$D$42) -> 
E147: May | F147: =IF($F$6<>"Flanders","",Data!H65) ->  | H147: =IF($F$6<>"Flanders","",'Results I'!$D$42) -> 
E148: Jun | F148: =IF($F$6<>"Flanders","",Data!H66) ->  | H148: =IF($F$6<>"Flanders","",'Results I'!$D$42) -> 
E149: July | F149: =IF($F$6<>"Flanders","",Data!H67) ->  | H149: =IF($F$6<>"Flanders","",'Results I'!$D$42) -> 
E150: August | F150: =IF($F$6<>"Flanders","",Data!H68) ->  | H150: =IF($F$6<>"Flanders","",'Results I'!$D$42) -> 
E151: September | F151: =IF($F$6<>"Flanders","",Data!H69) ->  | H151: =IF($F$6<>"Flanders","",'Results I'!$D$42) -> 
E152: October | F152: =IF($F$6<>"Flanders","",Data!H70) ->  | H152: =IF($F$6<>"Flanders","",'Results I'!$D$42) -> 
E153: November | F153: =IF($F$6<>"Flanders","",Data!H71) ->  | H153: =IF($F$6<>"Flanders","",'Results I'!$D$42) -> 
E154: December | F154: =IF($F$6<>"Flanders","",Data!H72) ->  | H154: =IF($F$6<>"Flanders","",'Results I'!$D$42) -> 
I156: Total term for financing measures for promotion of rational use of energy : | J156: =SUM(J143:J154) -> 0 | K156: €
C158: e.3.) Financing the support measures for renewable energy in Walloon Region
D159: =IF($F$6="Wallonia","","Not applicable in this region") -> Not applicable in this region
D161: e.3.a.) First term
F163: Net offtaken energy | H163: Tariff for first term | J163: Amount
E164: January | F164: =IF($F$6<>"Wallonia","",Data!H61) ->  | G164: =IF($F$6<>"Wallonia","","MWh *") ->  | H164: =IF($F$6<>"Wallonia","",'Results I'!$D$46) ->  | I164: =IF($F$6<>"Wallonia","","€/MWh =") ->  | J164: =IF($F$6<>"Wallonia","",F164*H164) ->  | K164: =IF($F$6<>"Wallonia","","€") -> 
E165: February | F165: =IF($F$6<>"Wallonia","",Data!H62) ->  | H165: =IF($F$6<>"Wallonia","",'Results I'!$D$46) ->  | J165: =IF($F$6<>"Wallonia","",F165*H165) -> 
E166: March | F166: =IF($F$6<>"Wallonia","",Data!H63) ->  | H166: =IF($F$6<>"Wallonia","",'Results I'!$D$46) -> 
E167: April | F167: =IF($F$6<>"Wallonia","",Data!H64) ->  | H167: =IF($F$6<>"Wallonia","",'Results I'!$D$46) -> 
E168: May | F168: =IF($F$6<>"Wallonia","",Data!H65) ->  | H168: =IF($F$6<>"Wallonia","",'Results I'!$D$46) -> 
E169: Jun | F169: =IF($F$6<>"Wallonia","",Data!H66) ->  | H169: =IF($F$6<>"Wallonia","",'Results I'!$D$46) -> 
E170: July | F170: =IF($F$6<>"Wallonia","",Data!H67) ->  | H170: =IF($F$6<>"Wallonia","",'Results I'!$D$46) -> 
E171: August | F171: =IF($F$6<>"Wallonia","",Data!H68) ->  | H171: =IF($F$6<>"Wallonia","",'Results I'!$D$46) -> 
E172: September | F172: =IF($F$6<>"Wallonia","",Data!H69) ->  | H172: =IF($F$6<>"Wallonia","",'Results I'!$D$46) -> 
E173: October | F173: =IF($F$6<>"Wallonia","",Data!H70) ->  | H173: =IF($F$6<>"Wallonia","",'Results I'!$D$46) -> 
E174: November | F174: =IF($F$6<>"Wallonia","",Data!H71) ->  | H174: =IF($F$6<>"Wallonia","",'Results I'!$D$46) -> 
E175: December | F175: =IF($F$6<>"Wallonia","",Data!H72) ->  | H175: =IF($F$6<>"Wallonia","",'Results I'!$D$46) -> 
E177: Total term for financing the support measures for renewable energy : | J177: =SUM(J164:J175) -> 0 | K177: €
D180: The credit of the exemption of the first component and the invoicing of the second component are made on a quarterly basis of a file received by the SPW
D181: on the basis of the offtake and tariff defined by the SPW.
D182: The principles are described in the guidelines published by the SPW.
D183: For more information, visit https://www.elia.be/fr/clients/certificats-verts-et-surcharges/wallonie-exemptions-partielles#Partial exemptions. (n French)
D184: The calculation below is purely indicative on the basis of the volume of offtake and on the basis of the tariff of the first component.
D186: e.3.b.) Exemption of the first component
F188: Net offtaken energy | H188: Tariff for first term | J188: Amount | M188: Exoneration
E189: January | F189: =IF($F$6<>"Wallonia","",Data!H61) ->  | G189: =IF($F$6<>"Wallonia","","MWh *") ->  | H189: =IF($F$6<>"Wallonia","",-'Results I'!$D$46*$M$189) ->  | I189: =IF($F$6<>"Wallonia","","€/MWh =") ->  | J189: =IF($F$6<>"Wallonia","",F189*H189) ->  | K189: =IF($F$6<>"Wallonia","","€") ->  | M189: =IF($F$6<>"Wallonia","",IF($F$8="No",0,IF($F$9="Yes",0.85,IF($F$10="Other",0,IF($F$10="Culture and animal production (01)",0.5,IF(Data!H73>1000,0.5,0)))))) -> 
E190: February | F190: =IF($F$6<>"Wallonia","",Data!H62) ->  | H190: =IF($F$6<>"Wallonia","",-'Results I'!$D$46*$M$189) -> 
E191: March | F191: =IF($F$6<>"Wallonia","",Data!H63) ->  | H191: =IF($F$6<>"Wallonia","",-'Results I'!$D$46*$M$189) -> 
E192: April | F192: =IF($F$6<>"Wallonia","",Data!H64) ->  | H192: =IF($F$6<>"Wallonia","",-'Results I'!$D$46*$M$189) -> 
E193: May | F193: =IF($F$6<>"Wallonia","",Data!H65) ->  | H193: =IF($F$6<>"Wallonia","",-'Results I'!$D$46*$M$189) -> 
E194: Jun | F194: =IF($F$6<>"Wallonia","",Data!H66) ->  | H194: =IF($F$6<>"Wallonia","",-'Results I'!$D$46*$M$189) -> 
E195: July | F195: =IF($F$6<>"Wallonia","",Data!H67) ->  | H195: =IF($F$6<>"Wallonia","",-'Results I'!$D$46*$M$189) -> 
E196: August | F196: =IF($F$6<>"Wallonia","",Data!H68) ->  | H196: =IF($F$6<>"Wallonia","",-'Results I'!$D$46*$M$189) -> 
E197: September | F197: =IF($F$6<>"Wallonia","",Data!H69) ->  | H197: =IF($F$6<>"Wallonia","",-'Results I'!$D$46*$M$189) -> 
E198: October | F198: =IF($F$6<>"Wallonia","",Data!H70) ->  | H198: =IF($F$6<>"Wallonia","",-'Results I'!$D$46*$M$189) -> 
E199: November | F199: =IF($F$6<>"Wallonia","",Data!H71) ->  | H199: =IF($F$6<>"Wallonia","",-'Results I'!$D$46*$M$189) -> 
E200: December | F200: =IF($F$6<>"Wallonia","",Data!H72) ->  | H200: =IF($F$6<>"Wallonia","",-'Results I'!$D$46*$M$189) -> 
I202: Total exemption : | J202: =SUM(J189:J200) -> 0 | K202: €
D204: e.3.c.) Second component
F205: Net offtaken energy | H205: Tariff for second term | J205: Amount
E206: January | F206: =IF($F$6<>"Wallonia","",Data!H61) ->  | G206: =IF($F$6<>"Wallonia","","MWh *") ->  | H206: =IF($F$6<>"Wallonia","",'Results I'!$E$46) ->  | I206: =IF($F$6<>"Wallonia","","€/MWh =") ->  | J206: =IF($F$6<>"Wallonia","",F206*H206*$M$189) ->  | K206: =IF($F$6<>"Wallonia","","€") -> 
E207: February | F207: =IF($F$6<>"Wallonia","",Data!H62) ->  | H207: =IF($F$6<>"Wallonia","",'Results I'!$E$46) -> 
E208: March | F208: =IF($F$6<>"Wallonia","",Data!H63) ->  | H208: =IF($F$6<>"Wallonia","",'Results I'!$E$46) -> 
E209: April | F209: =IF($F$6<>"Wallonia","",Data!H64) ->  | H209: =IF($F$6<>"Wallonia","",'Results I'!$E$46) -> 
E210: May | F210: =IF($F$6<>"Wallonia","",Data!H65) ->  | H210: =IF($F$6<>"Wallonia","",'Results I'!$E$46) -> 
E211: Jun | F211: =IF($F$6<>"Wallonia","",Data!H66) ->  | H211: =IF($F$6<>"Wallonia","",'Results I'!$E$46) -> 
E212: July | F212: =IF($F$6<>"Wallonia","",Data!H67) ->  | H212: =IF($F$6<>"Wallonia","",'Results I'!$E$46) -> 
E213: August | F213: =IF($F$6<>"Wallonia","",Data!H68) ->  | H213: =IF($F$6<>"Wallonia","",'Results I'!$E$46) -> 
E214: September | F214: =IF($F$6<>"Wallonia","",Data!H69) ->  | H214: =IF($F$6<>"Wallonia","",'Results I'!$E$46) -> 
E215: October | F215: =IF($F$6<>"Wallonia","",Data!H70) ->  | H215: =IF($F$6<>"Wallonia","",'Results I'!$E$46) -> 
E216: November | F216: =IF($F$6<>"Wallonia","",Data!H71) ->  | H216: =IF($F$6<>"Wallonia","",'Results I'!$E$46) -> 
E217: December | F217: =IF($F$6<>"Wallonia","",Data!H72) ->  | H217: =IF($F$6<>"Wallonia","",'Results I'!$E$46) -> 
I219: Total second component renewable energy support measures : | J219: =SUM(J206:J217) -> 0 | K219: €
E221: Total first-component exemption and second-component billing for renewable energy support measures : | J221: =J202+J219 -> 0 | K221: €
C223: e.4.) Financing the support measures for renewable energy in Brussels
D224: =IF($F$6="Brussels","","Not applicable in this region") -> 
F226: Net offtaken energy | H226: Tariff for first term | J226: Amount
E227: January | F227: =IF($F$6<>"Brussels","",Data!H61) -> 0 | G227: =IF($F$6<>"Brussels","","MWh *") -> MWh * | H227: =IF($F$6<>"Brussels","",'Results I'!$D$49) -> 0.5949 | I227: =IF($F$6<>"Brussels","","€/MWh =") -> €/MWh = | J227: =IF($F$6<>"Brussels","",F227*H227) -> 0 | K227: =IF($F$6<>"Brussels","","€") -> €
E228: February | F228: =IF($F$6<>"Brussels","",Data!H62) -> 0 | G228: =IF($F$6<>"Brussels","","MWh *") -> MWh * | H228: =IF($F$6<>"Brussels","",'Results I'!$D$49) -> 0.5949 | I228: =IF($F$6<>"Brussels","","€/MWh =") -> €/MWh = | J228: =IF($F$6<>"Brussels","",F228*H228) -> 0 | K228: =IF($F$6<>"Brussels","","€") -> €
E229: March | F229: =IF($F$6<>"Brussels","",Data!H63) -> 0 | G229: MWh * | H229: =IF($F$6<>"Brussels","",'Results I'!$D$49) -> 0.5949 | I229: €/MWh = | J229: 0 | K229: €
E230: April | F230: =IF($F$6<>"Brussels","",Data!H64) -> 0 | G230: MWh * | H230: =IF($F$6<>"Brussels","",'Results I'!$D$49) -> 0.5949 | I230: €/MWh = | J230: 0 | K230: €
E231: May | F231: =IF($F$6<>"Brussels","",Data!H65) -> 0 | G231: MWh * | H231: =IF($F$6<>"Brussels","",'Results I'!$D$49) -> 0.5949 | I231: €/MWh = | J231: 0 | K231: €
E232: Jun | F232: =IF($F$6<>"Brussels","",Data!H66) -> 0 | G232: MWh * | H232: =IF($F$6<>"Brussels","",'Results I'!$D$49) -> 0.5949 | I232: €/MWh = | J232: 0 | K232: €
E233: July | F233: =IF($F$6<>"Brussels","",Data!H67) -> 0 | G233: MWh * | H233: =IF($F$6<>"Brussels","",'Results I'!$D$49) -> 0.5949 | I233: €/MWh = | J233: 0 | K233: €
E234: August | F234: =IF($F$6<>"Brussels","",Data!H68) -> 0 | G234: MWh * | H234: =IF($F$6<>"Brussels","",'Results I'!$D$49) -> 0.5949 | I234: €/MWh = | J234: 0 | K234: €
E235: September | F235: =IF($F$6<>"Brussels","",Data!H69) -> 0 | G235: MWh * | H235: =IF($F$6<>"Brussels","",'Results I'!$D$49) -> 0.5949 | I235: €/MWh = | J235: 0 | K235: €
E236: October | F236: =IF($F$6<>"Brussels","",Data!H70) -> 0 | G236: MWh * | H236: =IF($F$6<>"Brussels","",'Results I'!$D$49) -> 0.5949 | I236: €/MWh = | J236: 0 | K236: €
E237: November | F237: =IF($F$6<>"Brussels","",Data!H71) -> 0 | G237: MWh * | H237: =IF($F$6<>"Brussels","",'Results I'!$D$49) -> 0.5949 | I237: €/MWh = | J237: 0 | K237: €
E238: December | F238: =IF($F$6<>"Brussels","",Data!H72) -> 0 | G238: MWh * | H238: =IF($F$6<>"Brussels","",'Results I'!$D$49) -> 0.5949 | I238: €/MWh = | J238: 0 | K238: €
E240: Total term for financing the support measures for renewable energy : | J240: =SUM(J227:J238) -> 0 | K240: €
I242: Total term for public service obligations : | J242: =J138+J156+J177+J240 -> 0 | K242: €
B245: f) Taxes and levies :
C247: f.1.) Occupying public domain in Walloon Region
D248: =IF($F$6="Wallonia","","Not applicable in this region") -> Not applicable in this region
F249: Net offtaken energy | H249: Tariff | J249: Amount
E250: January | F250: =IF($F$6<>"Wallonia","",Data!H61) ->  | G250: =IF($F$6<>"Wallonia","","MWh *") ->  | H250: =IF($F$6<>"Wallonia","",'Results I'!$D$53) ->  | I250: =IF($F$6<>"Wallonia","","€/MWh =") ->  | J250: =IF($F$6<>"Wallonia","",F250*H250) ->  | K250: =IF($F$6<>"Wallonia","","€") -> 
E251: February | F251: =IF($F$6<>"Wallonia","",Data!H62) ->  | H251: =IF($F$6<>"Wallonia","",'Results I'!$D$53) -> 
E252: March | F252: =IF($F$6<>"Wallonia","",Data!H63) ->  | H252: =IF($F$6<>"Wallonia","",'Results I'!$D$53) -> 
E253: April | F253: =IF($F$6<>"Wallonia","",Data!H64) ->  | H253: =IF($F$6<>"Wallonia","",'Results I'!$D$53) -> 
E254: May | F254: =IF($F$6<>"Wallonia","",Data!H65) ->  | H254: =IF($F$6<>"Wallonia","",'Results I'!$D$53) -> 
E255: Jun | F255: =IF($F$6<>"Wallonia","",Data!H66) ->  | H255: =IF($F$6<>"Wallonia","",'Results I'!$D$53) -> 
... 45 more rows

Sheet Tariffs
B2: TARIFFS
B5: A. Tariffs for the management and the development of the grid infrastructure
C7: 1. Tariffs for the monthly peak
F8: €/kW net offtaken by month
D9: On the 380/220/150 kV network | F9: 0.5292
D10: On the 70/36/30 kV network | F10: 0.773
D11: At transformer output to medium voltage | F11: 1.0275
C14: 2. Tariffs for the yearly peak
F15: €/kW net offtaken by year
D16: On the 380/220/150 kV network | F16: 12.9893
D17: On the 70/36/30 kV network | F17: 18.7555
D18: At transformer output to medium voltage | F18: 24.6648
C21: 3. Tariffs for the power put at disposal
F22: Principal AP | G22: Additional AP
F23: €/kVA at offtake by year | G23: €/kVA at offtake by year
D24: On the 380/220/150 kV network | F24: 10.0215 | G24: 2.0043
D25: On the 70/36/30 kV network | F25: 17.3818 | G25: 3.4764
D26: At transformer output to medium voltage | F26: 31.0837 | G26: 6.2167
B29: B. Tariffs for the management fo the electric system
F31: €/MWh net offtaken
D32: On the 380/220/150 kV network | F32: 2.7264
D33: On the 70/36/30 kV network | F33: 4.1341
D34: At transformer output to medium voltage | F34: 7.2319
B37: C. Tariffs for the power reserves and black-start
C39: 1. based on offtake
F40: €/MWh net offtaken
D41: On the 380/220/150 kV network | F41: 1.6203
D42: On the 70/36/30 kV network | F42: 1.6203
D43: At transformer output to medium voltage | F43: 1.6203
C45: 2. based on injection
F46: €/MWh net injected
D47: On the 380/220/150 kV network | F47: 1.05
D48: On the 70/36/30 kV network | F48: 1.05
D49: At transformer output to medium voltage | F49: 1.05
B52: D. Tariffs for market integration
F53: €/MWh net offtaken
D54: On the 380/220/150 kV network | F54: 0.6682
D55: On the 70/36/30 kV network | F55: 0.6682
D56: At transformer output to medium voltage | F56: 0.6682
B59: E. Tariffs for public service obligations
C61: 1. Tariffs for financing the support measures for renewable energy in Flemish Region
F62: €/MWh net offtaken
D63: On the 380/220/150 kV network | F63: 0
D64: On the 70/36/30 kV network | F64: 0.3722
D65: At transformer output to medium voltage | F65: 0.3722
C68: 2. Tariffs for financing measures for promotion of rational use of energy in Flemish Region
F69: €/MWh net offtaken
D70: On the 380/220/150 kV network | F70: 0
D71: On the 70/36/30 kV network | F71: 0.043
D72: At transformer output to medium voltage | F72: 0.043
C75: 3. Tariffs for financing the support measures for renewable energy in Walloon Region
F76: First term | G76: Second term
F77: €/MWh net offtaken | G77: €/MWh exempted
D78: On the 380/220/150 kV network | F78: 0 | G78: 0
D79: On the 70/36/30 kV network | F79: 5.9249 | G79: 0
D80: At transformer output to medium voltage | F80: 5.9249 | G80: 0
C82: 4. Tariffs for financing the support measures for renewable energy in Brussels
F83: €/MWh net offtaken
D84: On the 380/220/150 kV network | F84: 0
D85: On the 70/36/30 kV network | F85: 0.5949
D86: At transformer output to medium voltage | F86: 0.5949
B88: F. Taxes and levies
C90: 1. Occupying public domain in Walloon Region
F91: €/MWh net offtaken
D92: On the 380/220/150 kV network | F92: 0
D93: On the 70/36/30 kV network | F93: 0.398
D94: At transformer output to medium voltage | F94: 0.398
C97: 2. Occupying road network in Brussels Region
F98: €/MWh net offtaken
D99: On the 380/220/150 kV network | F99: 4.1778
D100: On the 70/36/30 kV network | F100: 4.1778
D101: At transformer output to medium voltage | F101: 0
C104: 3. Levie for the taxes "pylons" et "trenches" in Flemish region
F105: €/MWh net offtaken
D106: On the 380/220/150 kV network | F106: 0.5429
D107: On the 70/36/30 kV network | F107: 0.5429
D108: At transformer output to medium voltage | F108: 0.5429
